Workbook

Sheet List1
A5: Softwarová aplikácia pre finančnú analýzu
H22: Autor: Zuzana Mičáková

Sheet aktiva1
A1: AKTÍVA
A3: Označenie | B3: Názov | C3: Číslo riadka | D3: 2014 | E3: 2015 | F3: 2016 | G3: 2017 | H3: 2018 | I3: 2019
B5: SPOLU MAJETOK r. 02 + r. 14 | C5: 1 | D5: 455454 | E5: 273860 | F5: 227102 | G5: 170585 | H5: 304092 | I5: 260096
A6: A. | B6: Neobežný majetok r. 03 + r. 04 + r. 09 | C6: 2 | D6: 23502 | E6: 25560 | F6: 16921 | G6: 32334 | H6: 39511 | I6: 28245
A7: A.I. | B7: Dlhodobý nehmotný majetok (012, 013, 014, 015, 019, 01X, 041, 051) - /072, 073, 074, 075, 079, 07X, 091, 093, 095A/ | C7: 3
A8: A.II. | B8: Dlhodobý hmotný majetok súčet (r. 05 až r. 08) | C8: 4 | D8: 23502 | E8: 25560 | F8: 16921 | G8: 32334 | H8: 39511 | I8: 28245
A9: A.II.1. | B9: Pozemky a stavby (021, 031, 042A, 052A) - /081, 092A, 094A, 095A/ | C9: 5
A10: 2. | B10: Samostatné hnuteľné veci a súbory hnuteľných vecí (022, 02X, 042A, 052A) - /082, 08XA, 092A, 094A, 095A/ | C10: 6 | G10: 32334 | H10: 39511 | I10: 28245
A11: 3. | B11: Ostatný dlhodobý hmotný majetok (025, 026, 029, 02X, 032, 042A, 052A) - /085, 086, 089, 08XA, 092A, 094A, 095A/ | C11: 7
A12: 4. | B12: Opravná položka k nadobudnutému majetku (+/- 097 ) - /+/- 098/ | C12: 8
A13: A.III. | B13: Dlhodobý finančný majetok súčet (r. 10 až r. 13) | C13: 9
A14: A.III.1. | B14: Podielové cenné papiere (061, 062, 063, 043A, 053A) - /095A, 096A/ | C14: 10
A15: 2. | B15: Ostatný dlhodobý finančný majetok (065A, 066A, 067A, 069, 06XA, 043A, 053A) - /095A, 096A/ | C15: 11
A16: 3. | B16: Účty v bankách s dobou viazanosti dlhšou ako jeden rok (22XA) | C16: 12
A17: 4. | B17: Ostatný dlhodobý finančný majetok so zostatkovou dobou splatnosti najviac jeden rok (065A, 066A, 067A, 06XA) - /096A/ | C17: 13
A18: B. | B18: Obežný majetok r. 15 + r. 16 + r. 17 + r. 21 | C18: 14 | D18: 431952 | E18: 248300 | F18: 210181 | G18: 138251 | H18: 264581 | I18: 231851
A19: B.I. | B19: Zásoby (112, 119, 11X, 121, 122, 123, 124, 12X, 132, 133, 13X, 139, 314A) - /191, 192, 193, 194, 195, 196, 19X, 391A/ | C19: 15 | D19: 18209 | E19: 20961 | F19: 29996 | G19: 13807 | H19: 63318 | I19: 78979
A20: B.II. | B20: Dlhodobé pohľadávky (311A, 312A, 313A, 314A, 315A, 316A, 31XA, 335A, 336A, 33XA, 354A, 355A, 358A, 35XA, 371A, 374A, 375A, 378A, 381A, 382A, 385A) - 391A | C20: 16 | E20: 82 | F20: 0 | G20: 1450 | H20: -1186 | I20: 273
A21: B.III. | B21: Krátkodobé pohľadávky súčet (r. 18 až r. 20) | C21: 17 | D21: 270942 | E21: 120747 | F21: 92621 | G21: 83420 | H21: 189614 | I21: 137079
A22: B.III.1. | B22: Pohľadávky z obchodného styku (311A, 312A, 313A, 314A, 315A, 316A, 31XA) - /391A/ | C22: 18 | D22: 267119 | E22: 119412 | F22: 84900 | G22: 81897 | H22: 189614 | I22: 137059
A23: 2. | B23: Sociálne poistenie, daňové pohľadávky a dotácie (336A, 341A, 342A, 343A, 345A, 346A, 347A, 34XA) - /391A/ | C23: 19 | D23: 3823 | E23: 1335 | F23: 7582 | G23: 1523
A24: 3. | B24: Ostatné pohľadávky (335A, 336A, 33XA, 354A, 355A, 358A, 35XA, 371A, 374A, 375A, 378A, 381A, 382A, 385A, 398A) - /391A/ | C24: 20 | I24: 20
A25: B.IV. | B25: Finančný majetok r. 22 + r. 23 | C25: 21 | D25: 142801 | E25: 106510 | F25: 87564 | G25: 39574 | H25: 12835 | I25: 15520
A26: B.IV.1. | B26: Peniaze a účty v bankách (211, 213, 21X, 221A, 22XA, +/- 261) | C26: 22 | D26: 142801 | E26: 106510 | F26: 87564 | G26: 39574 | H26: 12835 | I26: 15520
A27: 2. | B27: Ostatné finančné účty (251, 252, 253, 256, 257, 25X, 259, 314A) - /291, 29X/ | C27: 23

Sheet pasiva1
A1: PASÍVA
A3: Označenie | B3: Názov | C3: Číslo riadka | D3: 2014 | E3: 2015 | F3: 2016 | G3: 2017 | H3: 2018 | I3: 2019
B5: SPOLU VLASTNÉ IMANIE A ZÁVÄZKY r. 25 + r. 34 | C5: 24 | D5: 455454 | E5: 273860 | F5: 227102 | G5: 170585 | H5: 304092 | I5: 260096
A6: A. | B6: Vlastné imanie r. 26 + r. 29 + r. 30 + r. 31 + r. 32 + r. 33 | C6: 25 | D6: 46010 | E6: 53480 | F6: 58043 | G6: 47944 | H6: 94354 | I6: 101263
A7: A.I. | B7: Základné imanie r. 27 + r. 28 | C7: 26 | D7: 6639 | E7: 6639 | F7: 6639 | G7: 6639 | H7: 6639 | I7: 6639
A8: A.I.1. | B8: Základné imanie a zmeny základného imania (411, +/- 419) alebo (+/- 491) | C8: 27 | G8: 6639 | H8: 6639 | I8: 6639
A9: 2. | B9: Pohľadávky za upísané vlastné imanie (/-/353) | C9: 28
A10: A.II. | B10: Kapitálové fondy (412, 413, 417, 418) | C10: 29 | D10: 0 | E10: 0 | F10: 0 | H10: 49214 | I10: 49214
A11: A.III. | B11: Fondy zo zisku (421, 422, 423, 427, 42X) | C11: 30 | D11: 889 | E11: 1392 | F11: 1393 | G11: 1393 | H11: 1393 | I11: 1393
A12: A.IV. | B12: Oceňovacie rozdiely (+/- 415, 416) | C12: 31
A13: A.V. | B13: Nerozdelený zisk alebo neuhradená strata minulých rokov (428, /-/429) | C13: 32 | D13: 28411 | E13: 37979 | F13: 45448 | G13: 50010 | H13: 39912 | I13: 37107
A14: A.VI. | B14: Výsledok hospodárenia za účtovné obdobie po zdanení (+/-) r. 01 - (r. 26 + r. 29 + r. 30 + r. 31 + r. 32 + r. 34) | C14: 33 | D14: 10071 | E14: 7470 | F14: 4563 | G14: -10098 | H14: -2804 | I14: 6910
A15: B. | B15: Záväzky r. 35 + r. 36 + r. 37 + r. 38 + r. 43 + r. 44 + r. 45 | C15: 34 | D15: 409444 | E15: 220380 | F15: 169059 | G15: 122641 | H15: 209738 | I15: 158833
A16: B.I. | B16: Dlhodobé záväzky okrem rezerv a úverov (316A, 321A, 32XA, 372A, 471A, 472A, 473A, 474A, 475A, 476A, 478A, 479A, 47XA, /-/255A, 383A, 384A) | C16: 35 | D16: 15520 | E16: 13475 | F16: 8080 | G16: 2887 | H16: 330 | I16: 342
A17: B.II. | B17: Dlhodobé rezervy (451A, 459A, 45XA) | C17: 36
A18: B.III. | B18: Dlhodobé bankové úvery (461A, 46XA) | C18: 37 | G18: 22355 | H18: 36421 | I18: 27654
A19: B.IV. | B19: Krátkodobé záväzky okrem rezerv, úverov a výpomoci súčet (r. 39 až r. 42) | C19: 38 | D19: 393924 | E19: 219822 | F19: 160725 | G19: 66643 | H19: 172987 | I19: 130837
A20: B.IV.1. | B20: Krátkodobé záväzky z obchodného styku (316A, 321A, 32XA, 322, 324, 325, 326, 32X, 475A, 476A, 478A, 479A, 47XA) | C20: 39 | G20: 59812 | H20: 128293 | I20: 110993
A21: 2. | B21: Záväzky voči zamestnancom a zo sociálneho poistenia (331, 333, 336A, 33X, 479A) | C21: 40 | G21: 3922 | H21: 2918 | I21: 4234
A22: 3. | B22: Daňové záväzky a dotácie (341A, 342A, 343A, 345A, 346A, 347A, 34XA) | C22: 41 | G22: 2059 | H22: 4270 | I22: 5017
A23: 4. | B23: Ostatné krátkodobé záväzky (364, 365, 366, 367, 368A, 36X, 372A, 379, 383A, 384A, 398A, 471A, 472A, 474A, 478A, 479A, 47XA) | C23: 42 | G23: 850 | H23: 37506 | I23: 10593
A24: B.V. | B24: Krátkodobé rezervy (323, 32XA, 451A, 459A, 45XA) | C24: 43 | E24: -12917 | F24: 254 | G24: 756
A25: B.VI. | B25: Bežné bankové úvery (221A, 231, 232, 23X, 461A, 46XA) | C25: 44
A26: B.VII. | B26: Krátkodobé finančné výpomoci (241, 249, 24X, 473A, /-/255A) | C26: 45 | G26: 30000

Sheet vzz1
A1: VZZ
A3: Označenie | B3: Názov | C3: Číslo riadka | D3: 2014 | E3: 2015 | F3: 2016 | G3: 2017 | H3: 2018 | I3: 2019
A5: * | B5: Výnosy z hospodárskej činnosti spolu súčet (r. 02 až r. 07) | C5: 1 | D5: 923977 | E5: 696952 | F5: 578268 | G5: 347907 | H5: 527556 | I5: 718787
A6: I. | B6: Tržby z predaja tovaru (604, 607) | C6: 2 | D6: 919776 | E6: 689874 | F6: 577313 | G6: 318842 | H6: 502479 | I6: 694770
A7: II. | B7: Tržby z predaja vlastných výrobkov a služieb (601, 602, 606) | C7: 3 | G7: 2071 | H7: 4446 | I7: 6471
A8: III. | B8: Zmena stavu vnútroorganizačných zásob (+/-) (účtová skupina 61) | C8: 4
A9: IV. | B9: Aktivácia (účtová skupina 62) | C9: 5
A10: V. | B10: Tržby z predaja dlhodobého nehmotného majetku, dlhodobého hmotného majetku a materiálu (641, 642) | C10: 6 | D10: 1083 | E10: 520 | H10: 10667
A11: VI. | B11: Ostatné výnosy z hospodárskej činnosti (644, 645, 646, 648, 655, 657) | C11: 7 | D11: 2098 | E11: 5675 | F11: 955 | G11: 26994 | H11: 9964 | I11: 17546
A12: * | B12: Náklady na hospodársku činnosť spolu súčet (r. 09 až r. 17) | C12: 8 | D12: 910237 | E12: 685508 | F12: 574377 | G12: 352470 | H12: 526659 | I12: 707188
A13: A. | B13: Náklady vynaložené na obstaranie predaného tovaru (504, (+/- ) 505A, 507) | C13: 9 | D13: 814632 | E13: 555314 | F13: 431707 | G13: 253051 | H13: 370429 | I13: 515031
A14: B. | B14: Spotreba materiálu, energie a ostatných neskladovateľných dodávok (501, 502, 503, (+/-) 505A) | C14: 10 | D14: 6798 | E14: 7966 | F14: 5622 | G14: 8711 | H14: 10618 | I14: 12606
A15: C. | B15: Služby (účtová skupina 51) | C15: 11 | D15: 80895 | E15: 108997 | F15: 100712 | G15: 33034 | H15: 75972 | I15: 101995
A16: D. | B16: Osobné náklady (účtová skupina 52) | C16: 12 | F16: 20315 | G16: 29622 | H16: 46940 | I16: 54981
A17: E. | B17: Dane a poplatky (účtová skupina 53) | C17: 13 | D17: 699 | E17: 784 | F17: 1529 | G17: 1526 | H17: 2368 | I17: 1728
A18: F. | B18: Odpisy a opravné položky k dlhodobému nehmotnému majetku a dlhodobému hmotnému majetku (551, (+/-) 553) | C18: 14 | D18: 6087 | E18: 5987 | F18: 8638 | G18: 12745 | H18: 14929 | I18: 16255
A19: G. | B19: Zostatková cena predaného dlhodobého majetku a predaného materiálu (541, 542) | C19: 15 | E19: 3528 | H19: 825
A20: H. | B20: Opravné položky k pohľadávkam (+/- 547) | C20: 16
A21: I. | B21: Ostatné náklady na hospodársku činnosť (543, 544, 545, 546, 548, 549, 555, 557) | C21: 17 | D21: 1126 | E21: 2932 | F21: 5854 | G21: 13781 | H21: 4578 | I21: 4592
A22: ** | B22: Výsledok hospodárenia z hospodárskej činnosti (+/-) (r. 01 - r. 08) | C22: 18 | D22: 13740 | E22: 11444 | F22: 3891 | G22: -4563 | H22: 897 | I22: 11599
A23: * | B23: Pridaná hodnota (r. 02 - r. 09) + (r. 03 + r. 04 + r. 05) - (r. 10 + r. 11) | C23: 19 | D23: 18471 | E23: 18480 | F23: 39272 | G23: 26117 | H23: 49906 | I23: 71609
A24: * | B24: Výnosy z finančnej činnosti spolu súčet (r. 21 až r. 26) | C24: 20 | D24: 4 | E24: 4 | F24: 4496 | G24: 91 | H24: 66
A25: VII. | B25: Tržby z predaja cenných papierov a podielov (661) | C25: 21
A26: VIII. | B26: Výnosy z dlhodobého finančného majetku (665) | C26: 22
A27: IX. | B27: Výnosy z krátkodobého finančného majetku (666) | C27: 23
A28: X. | B28: Výnosové úroky (662) | C28: 24 | D28: 4 | E28: 4 | F28: 1
A29: XI. | B29: Kurzové zisky (663) | C29: 25 | G29: 91 | H29: 66
A30: XII. | B30: Ostatné výnosy z finančnej činnosti (668) | C30: 26 | F30: 4495
A31: * | B31: Náklady na finančnú činnosť spolu súčet (r. 28 až r. 33) | C31: 27 | D31: 509 | E31: 1098 | F31: 842 | G31: 4303 | H31: 3205 | I31: 2042
A32: J. | B32: Predané cenné papiere a podiely (561) | C32: 28
A33: K. | B33: Náklady na krátkodobý finančný majetok (566) | C33: 29
A34: L. | B34: Opravné položky k finančnému majetku (+/-) (565) | C34: 30
A35: M. | B35: Nákladové úroky (562) | C35: 31 | D35: 65 | G35: 614 | H35: 1355 | I35: 1684
A36: N. | B36: Kurzové straty (563) | C36: 32 | G36: 1455 | H36: 515 | I36: 17
A37: O. | B37: Ostatné náklady na finančnú činnosť (568, 569) | C37: 33 | D37: 444 | E37: 1098 | F37: 842 | G37: 2234 | H37: 1335 | I37: 341
A38: ** | B38: Výsledok hospodárenia z finančnej činnosti (+/-) (r. 20 - r. 27) | C38: 34 | D38: -505 | E38: -1094 | F38: 3654 | G38: -4212 | H38: -3139 | I38: -2042
A39: ** | B39: Výsledok hospodárenia za účtovné obdobie pred zdanením (+/-) (r. 18 + r. 34) | C39: 35 | D39: 13235 | E39: 10350 | F39: 7545 | G39: -8775 | H39: -2242 | I39: 9557
A40: P. | B40: Daň z príjmov (591, 595) | C40: 36 | D40: 3164 | E40: 2880 | F40: 2982 | G40: 1323 | H40: 562 | I40: 2647
A41: Q. | B41: Prevod podielov na výsledku hospodárenia spoločníkom (+/-) (596) | C41: 37
A42: *** | B42: Výsledok hospodárenia za účtovné obdobie po zdanení (+/-) (r. 35 - r. 36 - r. 37) | C42: 38 | D42: 10071 | E42: 7470 | F42: 4563 | G42: -10098 | H42: -2804 | I42: 6910

Sheet Analyza (hidden)
B3: Bežná likvidita
B6: i | C6: Rok | D6: Bežná likvidita | E6: Regresná priamka
B7: 1 | C7: 2014 | D7: 1.096536388 | E7: 1.104 | M7: 1 | N7: =POWER(M7,2) -> 1 | P7: =B7*D7 -> 1.096536388
B8: 2 | C8: 2015 | D8: 1.129550272 | E8: 1.257 | M8: 2 | N8: =POWER(M8,2) -> 4 | P8: =B8*D8 -> 2.259100545
B9: 3 | C9: 2016 | D9: 1.307705709 | E9: 1.41 | M9: 3 | N9: 9 | P9: =B9*D9 -> 3.923117126
B10: 4 | C10: 2017 | D10: 2.074501448 | E10: 1.563 | M10: 4 | N10: 16 | P10: 8.298005792
B11: 5 | C11: 2018 | D11: 1.529484875 | E11: 1.716 | M11: 5 | N11: 25 | P11: 7.647424373
B12: 6 | C12: 2019 | D12: 1.772059891 | E12: 1.869 | M12: 6 | N12: 36 | P12: 10.63235935
B13: 7 | C13: 2020 | E13: 2.022 | N13: =SUM(N7:N12) -> 91
B14: 8 | C14: 2021 | E14: 2.175 | M14: =SUM(M7:M12)/6 -> 3.5 | N14: =SUM(N7:N12)/6 -> 15.16666667 | P14: =SUM(P7:P12) -> 33.85654357
M15: =POWER(M14,2) -> 12.25
B17: Charakteristiky trendu
B18: b1: | E18: 0.951
B19: b2: | E19: 0.153
B20: b3:
B21: Rovnica: | E21: y(x) = 0,951 + 0,153*x
B22: Priemer č. radu: | E22: =ROUND((SUM(D7:D12)/6),3) -> 1.485
B23: Priemer 1. dif: | E23: =ROUND((D12-D7)/5,3) -> 0.135
B24: Priemer koef. rastu: | E24: =ROUND((POWER(D12/D7,1/5)),3) -> 1.101

Sheet Likvidita (hidden)
A1: Ukazovateľ | B1: 2014 | C1: 2015 | D1: 2016 | E1: 2017 | F1: 2018 | G1: 2019
A2: Bežná likvidita | B2: 1.096536388 | C2: 1.129550272 | D2: 1.307705709 | E2: 2.074501448 | F2: 1.529484875 | G2: 1.772059891
A3: Pohotová likvidta | B3: 1.050311735 | C3: 1.034195849 | D3: 1.121076373 | E3: 1.8673229 | F3: 1.16345737 | G3: 1.168415662
A4: Okamžitá likvidita | B4: 0.3625090119 | C4: 0.4845283912 | D4: 0.5448063462 | E4: 0.5938208064 | F4: 0.07419632689 | G4: 0.1186208794

Sheet Rentabilita (hidden)
A1: Ukazovateľ | B1: 2014 | C1: 2015 | D1: 2016 | E1: 2017 | F1: 2018 | G1: 2019
A2: ROA [%] | B2: 2.211200253 | C2: 2.727671073 | D2: 2.009229333 | E2: -5.91962951 | F2: -0.9220893677 | G2: 2.656711368
A3: ROE [%] | B3: 21.88871984 | C3: 13.96783844 | D3: 7.86141309 | E3: -21.06207242 | F3: -2.9717871 | G3: 6.823815214
A4: ROI [%] | B4: 2.920163178 | C4: 3.779303294 | D4: 3.322295709 | E4: -4.784125216 | F4: -0.2916880418 | G4: 4.321865773
A5: ROCE [%] | B5: 16.47326507 | C5: 11.15674707 | D5: 6.900775827 | E5: -12.9587626 | F5: -1.105221006 | G5: 6.648666631
A6: ROS [%] | B6: 1.446004245 | C6: 1.500273963 | D6: 1.306916699 | E6: -2.543056841 | F6: -0.1749765744 | G6: 1.603015226

Sheet Aktivita (hidden)
A1: Ukazovateľ | B1: 2014 | C1: 2015 | D1: 2016 | E1: 2017 | F1: 2018 | G1: 2019
A2: Obrat celkových aktív | B2: 2.019470682 | C2: 2.51907544 | D2: 2.542086816 | E2: 1.881249817 | F2: 1.667011957 | G2: 2.696085292
A3: Obrat stálych aktív | B3: 39.13607353 | C3: 26.99037559 | D3: 34.11813723 | E3: 9.924939692 | F3: 12.8299714 | G3: 24.82708444
A4: Obrat zásob | B4: 50.51216431 | C4: 32.91226564 | D4: 19.24633284 | E4: 23.2427754 | F4: 8.006017246 | G4: 8.878828549
A5: Doba obratu zásob [deň] | B5: 7.225982196 | C5: 11.09009036 | D5: 18.96465176 | E5: 15.70380446 | F5: 45.59070868 | G5: 41.10902671
A6: Doba obratu pohľadávok [deň] | B6: 107.5194721 | C6: 63.92846375 | D6: 58.5586415 | E6: 96.52943321 | F6: 135.6733639 | G6: 71.49251113
A7: Doba obratu záväzkov [deň] | B7: 162.4820174 | C7: 123.4332719 | D7: 106.7251647 | E7: 79.08202535 | F7: 124.7930266 | G7: 68.2794289

Sheet Zadlzenost (hidden)
A1: Ukazovateľ | B1: 2014 | C1: 2015 | D1: 2016 | E1: 2017 | F1: 2018 | G1: 2019
A2: Celková zadlženosť | B2: 0.8989799189 | C2: 0.804717739 | D2: 0.7444188074 | E2: 0.7189436351 | F2: 0.6897189009 | G2: 0.6106706754
A3: Koeficient samofinancovania | B3: 0.1010200811 | C3: 0.195282261 | D3: 0.2555811926 | E3: 0.2810563649 | F3: 0.3102810991 | G3: 0.3893293246
A4: Úrokové krytie | B4: 204.6153846 | E4: -13.29153094 | F4: -0.6546125461 | G4: 6.675178147

Sheet hori_aktiva (hidden)
A1: AKTÍVA
A3: Označenie | B3: Názov | C3: Číslo riadka | D3: 2014 | E3: 2015 | F3: 2016 | G3: 2017 | H3: 2018
B5: SPOLU MAJETOK | C5: 1 | D5: -181594 | E5: -46758 | F5: -56517 | G5: 133507 | H5: -43996
A6: A. | B6: Neobežný majetok | C6: 2 | D6: 2058 | E6: -8639 | F6: 15413 | G6: 7177 | H6: -11266
A7: A.I. | B7: Dlhodobý nehmotný majetok | C7: 3
A8: A.II. | B8: Dlhodobý hmotný majetok súčet | C8: 4 | D8: 2058 | E8: -8639 | F8: 15413 | G8: 7177 | H8: -11266
A9: A.II.1. | B9: Pozemky a stavby | C9: 5
A10: 2. | B10: Samostatné hnuteľné veci a súbory hnuteľných vecí | C10: 6 | F10: 32334 | G10: 7177 | H10: -11266
A11: 3. | B11: Ostatný dlhodobý hmotný majetok | C11: 7
A12: 4. | B12: Opravná položka k nadobudnutému majetku | C12: 8
A13: A.III. | B13: Dlhodobý finančný majetok súčet | C13: 9
A14: A.III.1. | B14: Podielové cenné papiere | C14: 10
A15: 2. | B15: Ostatný dlhodobý finančný majetok | C15: 11
A16: 3. | B16: Účty v bankách s dobou viazanosti dlhšou ako jeden rok | C16: 12
A17: 4. | B17: Ostatný dlhodobý finančný majetok | C17: 13
A18: B. | B18: Obežný majetok | C18: 14 | D18: -183652 | E18: -38119 | F18: -71930 | G18: 126330 | H18: -32730
A19: B.I. | B19: Zásoby | C19: 15 | D19: 2752 | E19: 9035 | F19: -16189 | G19: 49511 | H19: 15661
A20: B.II. | B20: Dlhodobé pohľadávky | C20: 16 | D20: 82 | F20: 1450 | G20: -2636 | H20: 1459
A21: B.III. | B21: Krátkodobé pohľadávky súčet | C21: 17 | D21: -150195 | E21: -28126 | F21: -9201 | G21: 106194 | H21: -52535
A22: B.III.1. | B22: Pohľadávky z obchodného styku | C22: 18 | D22: -147707 | E22: -34512 | F22: -3003 | G22: 107717 | H22: -52555
A23: 2. | B23: Sociálne poistenie, daňové pohľadávky a dotácie | C23: 19 | D23: -2488 | E23: 6247 | F23: -6059
A24: 3. | B24: Ostatné pohľadávky | C24: 20 | H24: 20
A25: B.IV. | B25: Finančný majetok | C25: 21 | D25: -36291 | E25: -18946 | F25: -47990 | G25: -26739 | H25: 2685
A26: B.IV.1. | B26: Peniaze a účty v bankách | C26: 22 | D26: -36291 | E26: -18946 | F26: -47990 | G26: -26739 | H26: 2685
A27: 2. | B27: Ostatné finančné účty | C27: 23
A30: AKTÍVA
A32: Označenie | B32: Názov | C32: Číslo riadka | D32: =D3 -> 2014 | E32: =E3 -> 2015 | F32: 2016 | G32: 2017 | H32: 2018
B34: SPOLU MAJETOK | C34: 1 | D34: -0.3987098587 | E34: -0.1707368729 | F34: -0.2488617449 | G34: 0.7826420846 | H34: -0.1446798995
A35: A. | B35: Neobežný majetok | C35: 2 | D35: 0.08756701557 | E35: -0.3379890454 | F35: 0.9108799716 | G35: 0.2219644956 | H35: -0.285135785
A36: A.I. | B36: Dlhodobý nehmotný majetok | C36: 3
A37: A.II. | B37: Dlhodobý hmotný majetok súčet | C37: 4 | D37: 0.08756701557 | E37: -0.3379890454 | F37: 0.9108799716 | G37: 0.2219644956 | H37: -0.285135785
A38: A.II.1. | B38: Pozemky a stavby | C38: 5
A39: 2. | B39: Samostatné hnuteľné veci a súbory hnuteľných vecí | C39: 6 | F39: 32334 | G39: 0.2219644956 | H39: -0.285135785
A40: 3. | B40: Ostatný dlhodobý hmotný majetok | C40: 7
A41: 4. | B41: Opravná položka k nadobudnutému majetku | C41: 8
A42: A.III. | B42: Dlhodobý finančný majetok súčet | C42: 9
A43: A.III.1. | B43: Podielové cenné papiere | C43: 10
A44: 2. | B44: Ostatný dlhodobý finančný majetok | C44: 11
A45: 3. | B45: Účty v bankách s dobou viazanosti dlhšou ako jeden rok | C45: 12
A46: 4. | B46: Ostatný dlhodobý finančný majetok | C46: 13
A47: B. | B47: Obežný majetok | C47: 14 | D47: -0.4251676112 | E47: -0.1535199356 | F47: -0.3422288409 | G47: 0.9137727756 | H47: -0.1237050279
A48: B.I. | B48: Zásoby | C48: 15 | D48: 0.1511340546 | E48: 0.4310385955 | F48: -0.539705294 | G48: 3.585934671 | H48: 0.2473388294
A49: B.II. | B49: Dlhodobé pohľadávky | C49: 16 | D49: 82 | F49: 1450 | G49: -1.817931034 | H49: -1.230185497
A50: B.III. | B50: Krátkodobé pohľadávky súčet | C50: 17 | D50: -0.5543437341 | E50: -0.2329333234 | F50: -0.09934032239 | G50: 1.273004076 | H50: -0.2770628751
A51: B.III.1. | B51: Pohľadávky z obchodného styku | C51: 18 | D51: -0.552963286 | E51: -0.2890161793 | F51: -0.03537102473 | G51: 1.315274064 | H51: -0.2771683525
A52: 2. | B52: Sociálne poistenie, daňové pohľadávky a dotácie | C52: 19 | D52: -0.6507978028 | E52: 4.679400749 | F52: -0.7991295173
A53: 3. | B53: Ostatné pohľadávky | C53: 20
A54: B.IV. | B54: Finančný majetok | C54: 21 | D54: -0.2541368758 | E54: -0.1778800113 | F54: -0.5480562788 | G54: -0.675670895 | H54: 0.2091936112
A55: B.IV.1. | B55: Peniaze a účty v bankách | C55: 22 | D55: -0.2541368758 | E55: -0.1778800113 | F55: -0.5480562788 | G55: -0.675670895 | H55: 0.2091936112
A56: 2. | B56: Ostatné finančné účty | C56: 23

Sheet hori_pasiva (hidden)
A1: PASÍVA
A3: Označenie | B3: Názov | C3: Číslo riadka | D3: 2014 | E3: 2015 | F3: 2016 | G3: 2017 | H3: 2018
B5: SPOLU VLASTNÉ IMANIE A ZÁVÄZKY | C5: 24 | D5: -181594 | E5: -46758 | F5: -56517 | G5: 133507 | H5: -43996
A6: A. | B6: Vlastné imanie | C6: 25 | D6: 7470 | E6: 4563 | F6: -10099 | G6: 46410 | H6: 6909
A7: A.I. | B7: Základné imanie | C7: 26 | D7: 0 | E7: 0 | F7: 0 | G7: 0 | H7: 0
A8: A.I.1. | B8: Základné imanie a zmeny základného imania | C8: 27 | F8: 6639 | G8: 0 | H8: 0
A9: 2. | B9: Pohľadávky za upísané vlastné imanie | C9: 28
A10: A.II. | B10: Kapitálové fondy | C10: 29 | G10: 49214 | H10: 0
A11: A.III. | B11: Fondy zo zisku | C11: 30 | D11: 503 | E11: 1 | F11: 0 | G11: 0 | H11: 0
A12: A.IV. | B12: Oceňovacie rozdiely | C12: 31
A13: A.V. | B13: Nerozdelený zisk alebo neuhradená strata minulých rokov | C13: 32 | D13: 9568 | E13: 7469 | F13: 4562 | G13: -10098 | H13: -2805
A14: A.VI. | B14: Výsledok hospodárenia za účtovné obdobie po zdanení | C14: 33 | D14: -2601 | E14: -2907 | F14: -14661 | G14: 7294 | H14: 9714
A15: B. | B15: Záväzky | C15: 34 | D15: -189064 | E15: -51321 | F15: -46418 | G15: 87097 | H15: -50905
A16: B.I. | B16: Dlhodobé záväzky okrem rezerv a úverov | C16: 35 | D16: -2045 | E16: -5395 | F16: -5193 | G16: -2557 | H16: 12
A17: B.II. | B17: Dlhodobé rezervy | C17: 36
A18: B.III. | B18: Dlhodobé bankové úvery | C18: 37 | F18: 22355 | G18: 14066 | H18: -8767
A19: B.IV. | B19: Krátkodobé záväzky okrem rezerv, úverov a výpomoci súčet | C19: 38 | D19: -174102 | E19: -59097 | F19: -94082 | G19: 106344 | H19: -42150
A20: B.IV.1. | B20: Krátkodobé záväzky z obchodného styku | C20: 39 | F20: 59812 | G20: 68481 | H20: -17300
A21: 2. | B21: Záväzky voči zamestnancom a zo sociálneho poistenia | C21: 40 | F21: 3922 | G21: -1004 | H21: 1316
A22: 3. | B22: Daňové záväzky a dotácie | C22: 41 | F22: 2059 | G22: 2211 | H22: 747
A23: 4. | B23: Ostatné krátkodobé záväzky | C23: 42 | F23: 850 | G23: 36656 | H23: -26913
A24: B.V. | B24: Krátkodobé rezervy | C24: 43 | D24: -12917 | E24: 13171 | F24: 502
A25: B.VI. | B25: Bežné bankové úvery | C25: 44
A26: B.VII. | B26: Krátkodobé finančné výpomoci | C26: 45 | F26: 30000
A29: PASÍVA
A31: Označenie | B31: Názov | C31: Číslo riadka | D31: 2014 | E31: 2015 | F31: 2016 | G31: 2017 | H31: 2018
B33: SPOLU VLASTNÉ IMANIE A ZÁVÄZKY | C33: 24 | D33: -0.3987098587 | E33: -0.1707368729 | F33: -0.2488617449 | G33: 0.7826420846 | H33: -0.1446798995
A34: A. | B34: Vlastné imanie | C34: 25 | D34: 0.1623560096 | E34: 0.08532161556 | F34: -0.1739916958 | G34: 0.9680043384 | H34: 0.07322424063
A35: A.I. | B35: Základné imanie | C35: 26 | D35: 0.0001506250941 | E35: 0.0001506250941 | F35: 0.0001506250941 | G35: 0.0001506250941
A36: A.I.1. | B36: Základné imanie a zmeny základného imania | C36: 27 | F36: 0 | G36: 0.0001506250941
A37: 2. | B37: Pohľadávky za upísané vlastné imanie | C37: 28
A38: A.II. | B38: Kapitálové fondy | C38: 29 | G38: 0
A39: A.III. | B39: Fondy zo zisku | C39: 30 | D39: 0.5658042745 | E39: 0.0007183908046 | F39: 0.0007178750897 | G39: 0.0007178750897
A40: A.IV. | B40: Oceňovacie rozdiely | C40: 31
A41: A.V. | B41: Nerozdelený zisk alebo neuhradená strata minulých rokov | C41: 32 | D41: 0.336770969 | E41: 0.1966613128 | F41: 0.1003784545 | G41: -0.2019196161 | H41: -0.07027961515
A42: A.VI. | B42: Výsledok hospodárenia za účtovné obdobie po zdanení | C42: 33 | D42: -0.2582663092 | E42: -0.3891566265 | F42: -3.213017751 | G42: -0.7223212517 | H42: -3.464336662
A43: B. | B43: Záväzky | C43: 34 | D43: -0.4617578961 | E43: -0.232875034 | F43: -0.2745668672 | G43: 0.7101784884 | H43: -0.2427075685
A44: B.I. | B44: Dlhodobé záväzky okrem rezerv a úverov | C44: 35 | D44: -0.1317654639 | E44: -0.4003710575 | F44: -0.6426980198 | G44: -0.8856944926 | H44: 0.03636363636
A45: B.II. | B45: Dlhodobé rezervy | C45: 36
A46: B.III. | B46: Dlhodobé bankové úvery | C46: 37 | F46: 0 | G46: 0.6292104675 | H46: -0.2407127756
A47: B.IV. | B47: Krátkodobé záväzky okrem rezerv, úverov a výpomoci súčet | C47: 38 | D47: -0.4419685015 | E47: -0.2688402435 | F47: -0.5853600871 | G47: 1.595726483 | H47: -0.2436599282
A48: B.IV.1. | B48: Krátkodobé záväzky z obchodného styku | C48: 39 | F48: 0 | G48: 1.144937471 | H48: -0.1348475755
A49: 2. | B49: Záväzky voči zamestnancom a zo sociálneho poistenia | C49: 40 | F49: 0 | G49: -0.2559918409 | H49: 0.4509938314
A50: 3. | B50: Daňové záväzky a dotácie | C50: 41 | F50: 0 | G50: 1.073822244 | H50: 0.174941452
A51: 4. | B51: Ostatné krátkodobé záväzky | C51: 42 | F51: 0 | G51: 43.12470588 | H51: -0.7175651896
A52: B.V. | B52: Krátkodobé rezervy | C52: 43 | D52: 0 | E52: -1.019664009 | F52: 1.976377953
A53: B.VI. | B53: Bežné bankové úvery | C53: 44
A54: B.VII. | B54: Krátkodobé finančné výpomoci | C54: 45 | F54: 0

Sheet List5 (hidden)
B3: Rok t | C3: Poradie x=1 | D3: yi | E3: 1.diferencia | F3: koeficient rastu | G3: koeficient rastu v %
B4: 2014 | C4: 1 | D4: 38028 | Q4: i | R4: xi | S4: yi | T4: xi^2 | U4: xi*yi | V4: y so strieškou | W4: ei | X4: ei^2 | Y4: (y1-y priemer)^2 | Z4: vyrovnané údaje
B5: 2015 | C5: 2 | D5: 46478 | E5: =D5-D4 -> 8450 | F5: =D5/D4 -> 1.222204691 | G5: =(D5-D4)/D4 -> 0.2222046913 | M5: x priemer | N5: na druhu | Q5: 1 | R5: 1 | S5: 919776 | T5: =ROUND(POWER(R5,2),2) -> 1 | U5: =ROUND((R5*S5),2) -> 919776 | V5: =ROUND(($R$28+$R$29*R5),0) -> -1457003 | W5: =S5-V5 -> 2376779 | X5: =ROUND((POWER(W5,2)),2) -> 5649078414841 | Y5: =ROUND((POWER((S5-$R$31),2)),2) -> 9.026158981e+10 | Z5: =$R$28+($R$29*Q5) -> -1457003.143
B6: 2016 | C6: 3 | D6: 49456 | E6: =D6-D5 -> 2978 | F6: =D6/D5 -> 1.064073325 | G6: =(D6-D5)/D5 -> 0.06407332501 | M6: =R25/Q33 -> 3.5 | N6: =POWER(M6,2) -> 12.25 | Q6: 2 | R6: 2 | S6: 689874 | T6: =ROUND(POWER(R6,2),2) -> 4 | U6: =ROUND((R6*S6),2) -> 1379748 | V6: =ROUND(($R$28+$R$29*R6),0) -> -847657 | W6: =S6-V6 -> 1537531 | X6: =ROUND((POWER(W6,2)),2) -> 2364001575961 | Y6: =ROUND((POWER((S6-$R$31),2)),2) -> 4974998133 | Z6: =$R$28+($R$29*Q6) -> -847656.6857
B7: 2017 | C7: 4 | D7: 71608 | E7: =D7-D6 -> 22152 | F7: 1.447913297 | G7: =(D7-D6)/D6 -> 0.4479132967 | Q7: 3 | R7: 3 | S7: 577313 | T7: 9 | U7: 1731939 | V7: -238310 | W7: 815623 | X7: 665240878129 | Y7: 1766296747 | Z7: -238310.2286 | AA7: Index determinácie | AC7: =1-(X25/Y25) -> -46.19615926
B8: 2018 | C8: 5 | D8: 91594 | E8: 19986 | F8: 1.279102894 | G8: 0.2791028935 | Q8: 4 | R8: 4 | S8: 320913 | T8: 16 | U8: 1283652 | V8: 371036 | W8: -50123 | X8: 2512315129 | Y8: 8.905887328e+10 | Z8: 371036.2286
B9: 2019 | C9: 6 | D9: 101014 | E9: 9420 | F9: 1.102845165 | G9: 0.1028451645 | Q9: 5 | R9: 5 | S9: 506925 | T9: 25 | U9: 2534625 | V9: 980383 | W9: -473458 | X9: 224162477764 | Y9: 1.263720717e+10 | Z9: 980382.6857
D10: =SUM(D4:D9) -> 398178 | Q10: 6 | R10: 6 | S10: 701241 | T10: 36 | U10: 4207446 | V10: 1589729 | W10: -888488 | X10: 789410926144 | Y10: 6707719200 | Z10: 1589729.143
Q11: 7 | T11: 0 | U11: 0 | W11: 0 | X11: 0 | Z11: =$R$28+($R$29*Q11) -> 2199075.6
D12: priemerna hodnota y | E12: priemer 1.d | F12: priemer k | Q12: 8 | T12: 0 | U12: 0 | W12: 0 | X12: 0 | Z12: 2808422.057
D13: =D10/6 -> 66363 | E13: =(D9-D4)/5 -> 12597.2 | F13: =(D9/D4)^(1/5) -> 1.215781741 | Q13: 9 | T13: 0 | U13: 0 | W13: 0 | X13: 0
Q14: 10 | T14: 0 | U14: 0 | W14: 0 | X14: 0
Q15: 11 | T15: 0 | U15: 0 | W15: 0 | X15: 0
Q16: 12 | T16: 0 | U16: 0 | W16: 0 | X16: 0
Q17: 13 | T17: 0 | U17: 0 | W17: 0 | X17: 0
Q18: 14 | T18: 0 | U18: 0 | W18: 0 | X18: 0
Q19: 15 | T19: 0 | U19: 0 | W19: 0 | X19: 0
Q20: 16 | T20: 0 | U20: 0 | W20: 0 | X20: 0
Q21: 17 | T21: 0 | U21: 0 | W21: 0 | X21: 0
Q22: 18 | T22: 0 | U22: 0 | W22: 0 | X22: 0
Q23: 19 | T23: 0 | U23: 0 | W23: 0 | X23: 0
Q24: 20 | T24: 0 | U24: 0 | W24: 0 | X24: 0
P25: SUMA | R25: =SUM(R5:R24) -> 21 | S25: =SUM(S5:S24) -> 3716042 | T25: =SUM(T5:T24) -> 91 | U25: =SUM(U5:U24) -> 12057186 | V25: =SUM(V5:V24) -> 398178 | X25: =SUM(X5:X24) -> 9694406587968 | Y25: =SUM(Y5:Y24) -> 2.054066843e+11
P28: b1= | Q28: 58.4 | R28: =D13-(R29*M6) -> -2066349.6
P29: b2= | Q29: 408.5 | R29: =(U25-(Q33*D13*M6))/(T25-(6*N6)) -> 609346.4571
P31: y priemer = | R31: =S25/Q33 -> 619340.3333
P33: n= | Q33: 6

Sheet List6 (hidden)
B2: Ukazovateľ | C2: 2014 | D2: 2015 | E2: 2016 | F2: 2017 | G2: 2018 | H2: 2019 | K2: Rok | L2: Celková zadlženosť | R2: Rok t | S2: Rentabilita tržieb | T2: 1.diferencia [€] | U2: Koeficient rastu | V2: Koeficient rastu [%] | X2: Priemer časového radu | Y2: Priemer prvých diferencií | Z2: Priemer koeficientu rastu
B3: Vlastné imanie [€] | C3: 46010 | D3: 53480 | E3: 58043 | F3: 47944 | G3: 94354 | H3: 101263 | K3: 2014 | L3: 0.9 | N3: 160.05 | O3: 38028 | P3: 0.9 | R3: 2014 | S3: 38028 | X3: =List5!D13 -> 66363 | Y3: =List5!E13 -> 12597.2 | Z3: =List5!F13 -> 1.215781741
K4: 2015 | L4: 0.8 | N4: 63.05 | O4: 46478 | P4: 0.8 | R4: 2015 | S4: 46478 | T4: =S4-S3 -> 8450 | U4: =S4/S3 -> 1.222204691 | V4: =(S4-S3)/S3 -> 0.2222046913
K5: 2016 | L5: 0.74 | N5: 57.76 | O5: 49456 | P5: 0.74 | R5: 2016 | S5: 49456 | T5: =S5-S4 -> 2978 | U5: =S5/S4 -> 1.064073325 | V5: =(S5-S4)/S4 -> 0.06407332501
K6: 2017 | L6: 0.72 | N6: 95.21 | O6: 71608 | P6: 0.72 | R6: 2017 | S6: 71608 | T6: =S6-S5 -> 22152 | U6: 1.447913297 | V6: =(S6-S5)/S5 -> 0.4479132967
C7: 0.8989799189 | D7: 0.804717739 | E7: 0.7444188074 | F7: 0.7189436351 | G7: 0.6897189009 | H7: 0.6106706754 | K7: 2018 | L7: 0.69 | N7: 133.81 | O7: 91594 | P7: 0.69 | R7: 2018 | S7: 91594 | T7: =S7-S6 -> 19986 | U7: =S7/S6 -> 1.279102894 | V7: =(S7-S6)/S6 -> 0.2791028935
C8: 106.0466027 | D8: 63.05273137 | E8: 57.75646833 | F8: 95.20711221 | G8: 133.8148247 | H8: 70.51316167 | K8: 2019 | L8: 0.61 | N8: 70.51 | O8: 101014 | P8: 0.61 | R8: 2019 | S8: 101014 | T8: =S8-S7 -> 9420 | U8: 1.102845165 | V8: 0.1028451645
C9: 154.1817138 | D9: 114.7106863 | E9: 100.2246615 | F9: 77.99870993 | G9: 123.0835331 | H9: 67.34409426
C10: 455 454 | D10: 273 860 | E10: 227 102 | F10: 170 585 | G10: 304 092 | H10: 260 096
S17: 1.1
S18: 1.13
S19: 1.31
S20: 2.07
S21: 1.53
S22: 1.77
B30: Ukazovateľ | C30: 2014 | D30: 2015 | E30: 2016 | F30: 2017 | G30: 2018 | H30: 2019
B31: Pracovný kapitál [€] | C31: 431952 | D31: 248300 | E31: 210181 | F31: 138251 | G31: 264581 | H31: 231851
B32: Čistý pracovný kapitál [€] | C32: =C31-393924 -> 38028 | D32: =D31-201822 -> 46478 | E32: =E31-160725 -> 49456 | F32: =F31-66643 -> 71608 | G32: =G31-172987 -> 91594 | H32: =H31-130837 -> 101014
B37: Ukazovateľ | C37: 2014 | D37: 2015 | E37: 2016 | F37: 2017 | G37: 2018 | H37: 2019
B38: Bežná likvidita | C38: 1.096536388 | D38: 1.129550272 | E38: 1.307705709 | F38: 2.074501448 | G38: 1.529484875 | H38: 1.772059891
B39: Pohotová likvidta | C39: 1.050311735 | D39: 1.034195849 | E39: 1.121076373 | F39: 1.8673229 | G39: 1.16345737 | H39: 1.168415662
B40: Okamžitá likvidita | C40: 0.3625090119 | D40: 0.4845283912 | E40: 0.5448063462 | F40: 0.5938208064 | G40: 0.07419632689 | H40: 0.1186208794
B46: Pracovný kapitál [€] | C46: 431952 | D46: 248300 | E46: 210181 | F46: 138251 | G46: 264581 | H46: 231851
B47: Čistý pracovný kapitál [€] | C47: 413743 | D47: 227339 | E47: 180185 | F47: 124444 | G47: 201263 | H47: 152872
B58: Ukazovateľ | C58: 2014 | D58: 2015 | E58: 2016 | F58: 2017 | G58: 2018 | H58: 2019
B59: ROA [%] | C59: 2.211200253 | D59: 2.727671073 | E59: 2.009229333 | F59: -5.91962951 | G59: -0.9220893677 | H59: 2.656711368
B60: ROE [%] | C60: 21.88871984 | D60: 13.96783844 | E60: 7.86141309 | F60: -21.06207242 | G60: -2.9717871 | H60: 6.823815214
B61: ROI [%] | C61: 2.920163178 | D61: 3.779303294 | E61: 3.322295709 | F61: -4.784125216 | G61: -0.2916880418 | H61: 4.321865773
B62: ROCE [%] | C62: 16.47326507 | D62: 11.15674707 | E62: 6.900775827 | F62: -12.9587626 | G62: -1.105221006 | H62: 6.648666631
B63: ROS [%] | C63: 1.446004245 | D63: 1.500273963 | E63: 1.306916699 | F63: -2.543056841 | G63: -0.1749765744 | H63: 1.603015226
B80: Ukazovateľ | C80: 2014 | D80: 2015 | E80: 2016 | F80: 2017 | G80: 2018 | H80: 2019
B81: Obrat celkových aktív | C81: 2.019470682 | D81: 2.51907544 | E81: 2.542086816 | F81: 1.881249817 | G81: 1.667011957 | H81: 2.696085292
B82: Obrat stálych aktív | C82: 39.13607353 | D82: 26.99037559 | E82: 34.11813723 | F82: 9.924939692 | G82: 12.8299714 | H82: 24.82708444
B83: Obrat zásob | C83: 50.51216431 | D83: 32.91226564 | E83: 19.24633284 | F83: 23.2427754 | G83: 8.006017246 | H83: 8.878828549
B84: Doba obratu zásob [deň] | C84: 7.126996138 | D84: 10.93817132 | E84: 18.70486201 | F84: 15.48868385 | G84: 44.96617843 | H84: 40.54588936
B85: Doba obratu pohľadávok [deň] | C85: 106.0466027 | D85: 63.05273137 | E85: 57.75646833 | F85: 95.20711221 | G85: 133.8148247 | H85: 70.51316167
B86: Doba obratu záväzkov [deň] | C86: 154.1817138 | D86: 114.7106863 | E86: 100.2246615 | F86: 77.99870993 | G86: 123.0835331 | H86: 67.34409426
V88: ,
B94: Ukazovateľ | C94: 2014 | D94: 2015 | E94: 2016 | F94: 2017 | G94: 2018 | H94: 2019
B95: Celková zadlženosť | C95: 0.8989799189 | D95: 0.804717739 | E95: 0.7444188074 | F95: 0.7189436351 | G95: 0.6897189009 | H95: 0.6106706754
B96: Koeficient samofinancovania | C96: 0.1010200811 | D96: 0.195282261 | E96: 0.2555811926 | F96: 0.2810563649 | G96: 0.3102810991 | H96: 0.3893293246
B97: Úrokové krytie | C97: 204.6153846 | F97: -13.29153094 | G97: -0.6546125461 | H97: 6.675178147
B106: Ukazovateľ | C106: 2014 | D106: 2015 | E106: 2016 | F106: 2017 | G106: 2018 | H106: 2019
B107: Tržby z predaja tovaru [€] | C107: 919776 | D107: 689874 | E107: 577313 | F107: 318842 | G107: 502479 | H107: 694770
B108: Tržby z predaja vlastných výrobkov a služieb [€] | C108: 0 | D108: 0 | E108: 0 | F108: 2071 | G108: 4446 | H108: 6471
B109: Tržby celkom [€] | C109: 919776 | D109: 689874 | E109: 577313 | F109: 320913 | G109: 506925 | H109: 701241
B116: Požiadavky na aplikáciu
B117: Analýza finančných ukazovateľov
B118: Plne automatizované načítanie údajov
B119: Možnosť výberu analyzovaného obdobia
B120: Prehľadné výsledky formou tlačových zostáv pripravených na tisk
B121: Dostupnosť použitého softwaru bez nutnosti nákupu
B125: Náklady spojené so softwarovou aplikáciou | C125: Cena
B126: Softwarová aplikácia | C126: 85 eur
B127: Zaškolenie užívateľa | C127: 15 eur/hod
B128: Konzultácie v prípade problémov | C128: 10 eur/hod
